bitfinex/quotes_BTCUSD_20251027
["timestamp","ask_amount","ask_price","bid_price","bid_amount"]
[1761571819025,0.01272612,115190.0,115180.0,1.49302028]
[1761571819481,0.01172612,115190.0,115180.0,1.49302028]
[1761571819691,0.01172612,115190.0,115180.0,1.54302028]
[1761571819936,0.00172612,115190.0,115180.0,1.54202028]
[1761571820349,0.00372612,115190.0,115180.0,1.54302028]
[1761571820522,0.00172612,115190.0,115180.0,1.54202028]
[1761571820884,0.00172612,115190.0,115180.0,1.15360125]
[1761571821152,0.00272612,115190.0,115180.0,1.54402028]
[1761571821890,0.00272612,115190.0,115180.0,1.63383929]
[1761571824220,0.00272612,115190.0,115180.0,1.24542026]
[1761571824433,0.00272612,115190.0,115180.0,1.63383929]
[1761571825054,0.00272612,115190.0,115180.0,1.66855929]
[1761571825305,0.00272612,115190.0,115180.0,1.72407929]
[1761571826259,0.00272612,115190.0,115180.0,2.11249832]
[1761571826666,0.00272612,115190.0,115180.0,2.31249832]
[1761571827225,0.00272612,115190.0,115180.0,2.11249832]
[1761571827428,0.00172612,115190.0,115180.0,2.11049832]
[1761571827595,0.00172612,115190.0,115180.0,2.32049831]
[1761571827801,0.00272612,115190.0,115180.0,2.23126011]
[1761571828537,0.00272612,115190.0,115180.0,2.23226011]
[1761571828697,0.00272612,115190.0,115180.0,2.03226011]
[1761571828899,0.00272612,115190.0,115180.0,2.02126012]
[1761571829469,0.00272612,115190.0,115180.0,2.02226012]
[1761571829669,0.00272612,115190.0,115180.0,2.02126012]
[1761571829802,0.00172612,115190.0,115180.0,1.42530012]
[1761571830010,0.00172612,115190.0,115180.0,2.01626012]
[1761571830422,0.00272612,115190.0,115180.0,2.02426012]
[1761571830640,0.00172612,115190.0,115180.0,2.01626012]
[1761571831025,0.00272612,115190.0,115180.0,1.63958012]
[1761571831245,0.00272612,115190.0,115180.0,2.02022012]
[1761571831661,0.00272612,115190.0,115180.0,2.02122012]
[1761571831870,0.00272612,115190.0,115180.0,1.79214012]
[1761571832105,0.00272612,115190.0,115180.0,1.43130012]
[1761571832510,0.00272612,115190.0,115180.0,0.84706026]
[1761571832728,0.21253458,115190.0,115180.0,0.14624]
[1761571832940,0.21253458,115190.0,115180.0,0.5836]
[1761571833137,0.21253458,115190.0,115180.0,0.68624]
[1761571833785,0.30135359,115190.0,115180.0,0.09124]
[1761571833989,0.30135359,115190.0,115180.0,0.68128]
[1761571834193,0.30935359,115190.0,115180.0,0.68228]
[1761571834394,0.30935359,115190.0,115180.0,0.68128]
[1761571835057,0.30135359,115190.0,115180.0,0.09024]
[1761571835263,0.3488501,115190.0,115180.0,0.68032]
[1761571835594,0.3498501,115190.0,115180.0,0.68032]
[1761571835731,0.3498501,115190.0,115180.0,0.09024]
[1761571835939,0.3498501,115190.0,115180.0,0.47208]
[1761571836143,0.3498501,115190.0,115180.0,0.68032]
[1761571836345,0.31135359,115190.0,115180.0,0.68132]
[1761571837581,0.0479084,115190.0,115180.0,0.68132]
[1761571837801,0.1853523,115190.0,115180.0,0.68132]
[1761571838224,0.22153458,115190.0,115180.0,0.68132]
[1761571838440,0.1843523,115190.0,115180.0,0.68132]
[1761571838658,0.22053458,115190.0,115180.0,0.68132]
[1761571839401,0.22053458,115190.0,115180.0,0.85496125]
[1761571839616,0.0379084,115190.0,115180.0,0.85396125]
[1761571839843,0.0379084,115190.0,115180.0,0.85496125]
[1761571840065,0.0449084,115190.0,115180.0,0.85496125]
[1761571840282,0.0379084,115190.0,115180.0,0.85396125]
[1761571840501,0.21153458,115190.0,115180.0,0.85496125]
[1761571840725,0.0489084,115190.0,115180.0,1.53656111]
[1761571840955,0.23423785,115190.0,115180.0,0.09024]
[1761571841181,0.21153458,115190.0,115180.0,0.68028]
[1761571841419,0.21953458,115190.0,115180.0,0.68128]
[1761571841640,0.21153458,115190.0,115180.0,0.68028]
[1761571841875,0.21153458,115190.0,115180.0,0.09024]
[1761571842096,0.3398682,115190.0,115180.0,0.6248]
[1761571842316,0.30235359,115190.0,115180.0,0.68032]
[1761571842542,0.30235359,115190.0,115180.0,0.09024]
[1761571842810,0.30235359,115190.0,115140.0,0.18233644]
[1761571842811,1.34260275,115190.0,115140.0,0.18238493]
[1761571843025,0.20986877,115150.0,115140.0,0.52238493]
[1761571843246,0.21028209,115150.0,115140.0,0.57790493]
[1761571843466,0.21028209,115150.0,115140.0,0.23790493]
[1761571843907,0.21028209,115150.0,115140.0,0.39552]
[1761571844128,0.21028209,115150.0,115140.0,0.72298158]
[1761571844566,0.21028209,115150.0,115140.0,0.72198158]
[1761571844784,0.0365956,115150.0,115140.0,0.72198158]
[1761571845000,0.0365956,115150.0,115140.0,1.02250158]
[1761571845216,0.0365956,115150.0,115140.0,1.19606158]
[1761571846303,0.00041332,115150.0,115140.0,1.96748045]
[1761571853805,0.00041332,115150.0,115140.0,1.83720945]
[1761571856243,0.00041332,115150.0,115140.0,2.3985383]
[1761571856452,0.00041332,115150.0,115140.0,1.84720944]
[1761571856669,0.00041332,115150.0,115140.0,1.87325925]
[1761571857049,0.00041332,115150.0,115140.0,2.42458811]
[1761571857259,0.00041332,115150.0,115140.0,1.87325925]
[1761571857438,0.00041332,115150.0,115140.0,2.42458811]
[1761571858208,1e-08,115150.0,115140.0,2.42458811]
[1761571858618,1e-08,115150.0,115140.0,2.43458809]
[1761571859224,1e-08,115150.0,115140.0,2.43258809]
[1761571859421,1e-08,115150.0,115140.0,2.43458809]
[1761571859620,1e-08,115150.0,115140.0,2.48197037]
[1761571859825,0.0002,115210.0,115200.0,1.61626883]
[1761571860043,0.00068689,115210.0,115200.0,1.36319898]
[1761571860462,0.00068689,115210.0,115200.0,1.85900784]
[1761571860662,1e-08,115210.0,115200.0,1.86900783]
[1761571860882,1e-08,115220.0,115210.0,0.71359604]
[1761571861093,1e-08,115220.0,115210.0,1.36474389]
[1761571861314,1e-08,115220.0,115210.0,0.82341502]
[1761571861758,1e-08,115220.0,115210.0,0.83194297]
[1761571862155,1e-08,115220.0,115210.0,0.82194299]
[1761571862355,1e-08,115220.0,115210.0,0.98498297]
[1761571862958,1e-08,115220.0,115210.0,0.98598297]
[1761571863777,1e-08,115220.0,115210.0,0.62294299]
[1761571863973,1e-08,115220.0,115210.0,0.77598299]
[1761571864178,1e-08,115220.0,115210.0,0.614573]
[1761571864393,1e-08,115220.0,115210.0,0.26604505]
[1761571864616,1e-08,115220.0,115210.0,0.41904505]
[1761571864840,1e-08,115220.0,115210.0,0.75904505]
[1761571864998,1e-08,115220.0,115210.0,0.94656505]
[1761571865196,1e-08,115220.0,115210.0,0.69528505]
[1761571865423,1e-08,115220.0,115210.0,0.79256505]
[1761571865620,1e-08,115220.0,115210.0,1.28260505]
[1761571865821,0.00144563,115220.0,115210.0,0.94260505]
[1761571866021,0.00144563,115220.0,115210.0,1.49393391]
[1761571866278,0.00144563,115220.0,115210.0,1.49293391]
[1761571866279,0.00244563,115220.0,115210.0,1.49293391]
[1761571866489,0.00144563,115220.0,115210.0,1.49293391]
[1761571866693,0.00144563,115220.0,115210.0,1.83293391]
[1761571866912,0.00744563,115220.0,115210.0,1.22612505]
[1761571867127,0.1810266,115220.0,115210.0,0.70111604]
[1761571867329,0.1750266,115220.0,115210.0,0.09024]
[1761571867730,0.1790266,115220.0,115210.0,0.6806]
[1761571867945,0.1790266,115220.0,115210.0,0.09024]
[1761571868148,0.1790266,115220.0,115210.0,0.62508]
[1761571868529,0.1790266,115220.0,115210.0,0.6806]
[1761571868960,0.1750266,115220.0,115210.0,0.62508]
[1761571869212,0.1750266,115220.0,115210.0,0.6806]
[1761571869399,0.1830266,115220.0,115210.0,0.6806]
[1761571869528,0.1750266,115220.0,115210.0,0.6806]
[1761571869737,0.1750266,115220.0,115210.0,0.09024]
[1761571870102,0.1830266,115220.0,115210.0,0.09024]
[1761571870323,0.1750266,115220.0,115210.0,0.6806]
[1761571870477,0.1750266,115220.0,115210.0,1.23192886]
[1761571870686,0.1830266,115220.0,115210.0,1.4055249]
[1761571871325,0.00944563,115220.0,115210.0,1.4055249]
[1761571871542,0.1830266,115220.0,115210.0,1.4055249]
[1761571871756,0.1830266,115220.0,115210.0,0.09024]
[1761571871894,0.21910622,115220.0,115210.0,0.09024]
[1761571872099,0.1830266,115220.0,115210.0,0.6806]
[1761571872512,0.1750266,115220.0,115210.0,0.6806]
[1761571872933,0.1830266,115220.0,115210.0,0.6806]
[1761571873135,0.1750266,115220.0,115210.0,0.6806]
[1761571873335,0.1750266,115220.0,115210.0,1.23192886]
[1761571873560,0.1830266,115220.0,115210.0,0.6806]
[1761571873942,0.1750266,115220.0,115210.0,0.6806]
[1761571874579,0.1830266,115220.0,115210.0,0.6806]
[1761571874813,0.1830266,115220.0,115210.0,0.68056]
[1761571876198,0.1830266,115220.0,115210.0,0.09024]
[1761571876394,0.1750266,115220.0,115210.0,0.68056]
[1761571876987,0.1830266,115220.0,115210.0,1.4054849]
[1761571877187,0.1830266,115220.0,115210.0,0.85415604]
[1761571878085,0.1830266,115220.0,115210.0,0.68056]
[1761571878292,0.1750266,115220.0,115210.0,0.68052]
[1761571878602,0.1750266,115220.0,115210.0,0.85411604]
[1761571879475,0.1750266,115220.0,115210.0,1.4054449]
[1761571879695,0.1830266,115220.0,115210.0,1.4054449]
[1761571879923,0.1830266,115220.0,115210.0,0.85411604]
[1761571880131,0.1830266,115220.0,115210.0,1.4054449]
[1761571880574,0.1830266,115220.0,115210.0,0.85411604]
[1761571881118,0.1830266,115220.0,115210.0,0.68052]
[1761571881322,0.1830266,115220.0,115210.0,0.09024]
[1761571881677,0.21910622,115220.0,115210.0,0.68048]
[1761571881878,0.30892523,115220.0,115210.0,0.52752]
[1761571882085,0.86025409,115220.0,115210.0,0.52752]
[1761571882264,0.86025409,115220.0,115210.0,0.68056]
[1761571882474,0.88630413,115220.0,115210.0,0.68056]
[1761571882675,0.33497527,115220.0,115210.0,0.68056]
[1761571882874,0.87830413,115220.0,115210.0,0.68056]
[1761571883302,0.90130413,115220.0,115210.0,0.09124]
[1761571883508,0.34,115210.0,115140.0,0.72496187]
[1761571883715,0.17368913,115150.0,115130.0,0.73442267]
[1761571883913,0.17367141,115160.0,115140.0,0.32677921]
[1761571884553,0.17368649,115150.0,115140.0,0.32677921]
[1761571884793,0.17367141,115160.0,115140.0,0.32677921]
[1761571884994,0.17367141,115160.0,115150.0,0.52752]
[1761571886857,0.17367141,115160.0,115150.0,0.68164]
[1761571887037,0.17367141,115160.0,115150.0,0.09124]
[1761571887184,0.17567141,115160.0,115150.0,0.68172]
[1761571887389,0.17367141,115160.0,115150.0,0.68172]
[1761571887838,0.18067141,115160.0,115150.0,0.68172]
[1761571888044,0.18067141,115160.0,115150.0,0.68072]
[1761571888796,0.21697328,115160.0,115150.0,0.09024]
[1761571888973,0.30679229,115160.0,115150.0,0.68068]
[1761571889200,0.30699891,115160.0,115150.0,0.68068]
[1761571889561,0.30699891,115160.0,115150.0,0.68168]
[1761571889715,0.27069704,115160.0,115150.0,0.68168]
[1761571889922,0.27069704,115160.0,115150.0,0.68068]
[1761571890129,0.18087803,115160.0,115150.0,0.68068]
[1761571892538,0.18087803,115160.0,115150.0,0.85436649]
[1761571892741,0.18087803,115160.0,115150.0,1.23200886]
[1761571892893,0.18087803,115160.0,115150.0,1.40569535]
[1761571893082,0.21706031,115160.0,115150.0,1.40569535]
[1761571893445,0.0433889,115160.0,115150.0,1.40569535]
[1761571893644,0.21706031,115160.0,115150.0,1.40569535]
[1761571894236,0.0363889,115160.0,115150.0,1.40569535]
[1761571894459,0.21006031,115160.0,115150.0,1.40569535]
[1761571894834,0.0363889,115160.0,115150.0,1.40569535]
[1761571894995,0.0383889,115160.0,115150.0,1.40569535]
[1761571895649,0.21206031,115160.0,115150.0,0.85436649]
[1761571895861,0.21206031,115160.0,115150.0,1.40569535]
[1761571896381,0.21006031,115160.0,115150.0,1.40569535]
[1761571896525,0.21006031,115160.0,115150.0,0.85436649]
[1761571896722,0.21206031,115160.0,115150.0,0.85436649]
[1761571896950,0.21206031,115160.0,115150.0,0.09024]
[1761571897126,0.25150107,115160.0,115150.0,0.52768]
[1761571897326,0.25150107,115160.0,115150.0,0.68072]
[1761571897885,0.21206031,115160.0,115150.0,0.68072]
[1761571898615,0.21206031,115160.0,115150.0,0.85440649]
[1761571899220,0.21206031,115160.0,115150.0,1.40573535]
[1761571899396,0.21206031,115160.0,115150.0,0.85440649]
[1761571899977,0.0383889,115160.0,115150.0,0.85440649]
[1761571900686,0.21206031,115160.0,115150.0,0.85440649]
[1761571900922,0.0383889,115160.0,115150.0,0.85440649]
[1761571901230,0.21206031,115160.0,115150.0,0.85440649]
[1761571901594,0.0383889,115160.0,115150.0,0.85440649]
[1761571901796,0.21206031,115160.0,115150.0,0.85440649]
[1761571902006,0.0383889,115160.0,115150.0,0.85440649]
[1761571903352,0.21206031,115160.0,115150.0,0.85440649]
[1761571903651,0.0383889,115160.0,115150.0,0.85440649]
[1761571904114,0.0383889,115160.0,115150.0,1.40573535]
[1761571904322,0.21206031,115160.0,115150.0,0.68072]
[1761571904539,0.23413393,115160.0,115150.0,0.52768]
[1761571904738,0.23413393,115160.0,115150.0,0.68072]
[1761571905153,0.23413393,115160.0,115150.0,0.09024]
[1761571905154,0.8752818,115160.0,115150.0,0.09024]
[1761571905359,0.8752818,115160.0,115150.0,0.29856]
[1761571905561,1.2152818,115160.0,115150.0,0.52768]
[1761571905762,1.2152818,115160.0,115150.0,0.68076]
[1761571906299,1.2162818,115160.0,115150.0,0.68076]
[1761571906597,1.2142818,115160.0,115150.0,0.68076]
[1761571906906,1.2232818,115160.0,115140.0,0.00048689]
[1761571907139,1.10121272,115140.0,115130.0,0.20909808]
[1761571907332,2.40848874,115140.0,115130.0,0.00092401]
[1761571907548,0.54991403,115120.0,115110.0,0.09028]
[1761571907754,1.1910619,115120.0,115110.0,0.52776]
[1761571907970,1.1910619,115120.0,115110.0,0.2986]
[1761571908151,1.1910619,115120.0,115110.0,0.68096]
[1761571908374,1.28088091,115120.0,115110.0,0.68096]
[1761571909191,1.28088091,115120.0,115110.0,0.09028]
[1761571909395,1.29088091,115120.0,115110.0,0.4296]
[1761571909618,1.28088091,115120.0,115110.0,0.4296]
[1761571909828,1.28888091,115120.0,115110.0,0.4306]
[1761571910033,0.63973304,115120.0,115110.0,0.4296]
[1761571910487,0.64773304,115120.0,115110.0,0.4306]
[1761571910674,1.1920619,115120.0,115110.0,0.4296]
[1761571911106,1.1990619,115120.0,115110.0,0.4306]
[1761571911436,1.2000619,115120.0,115110.0,0.4306]
[1761571911639,1.28988091,115120.0,115110.0,0.4306]
[1761571912545,1.28988091,115120.0,115110.0,0.09128]
[1761571912761,1.28988091,115120.0,115110.0,0.66784]
[1761571913329,1.29988091,115120.0,115110.0,0.6825335]
[1761571914000,1.43196973,115120.0,115110.0,0.6825335]
[1761571914739,1.42196973,115120.0,115110.0,0.6825335]
[1761571915516,1.42196973,115120.0,115110.0,0.6826135]
[1761571916098,1.42196973,115120.0,115110.0,0.0916935]
[1761571916454,1.42196973,115120.0,115110.0,0.6826135]
[1761571916807,0.73855205,115120.0,115110.0,0.0916935]
[1761571917012,1.42196973,115120.0,115110.0,0.6826135]
[1761571918575,1.43196973,115120.0,115110.0,0.05556]
[1761571918769,0.20992913,115110.0,115100.0,0.20844]
[1761571918978,0.20992913,115110.0,115090.0,0.0004]
[1761571918979,0.54994422,115100.0,115090.0,0.0004]
[1761571919232,1.32318091,115100.0,115090.0,0.05600868]
[1761571919886,1.32318091,115100.0,115090.0,0.20932868]
[1761571920097,0.63976323,115100.0,115090.0,0.20932868]
[1761571920303,0.63976323,115100.0,115090.0,0.21332868]
[1761571920304,1.32418091,115100.0,115090.0,0.21332868]
[1761571920458,0.73058224,115100.0,115090.0,0.21332868]
[1761571921067,0.72958224,115100.0,115090.0,0.20932868]
[1761571921456,1.41299992,115100.0,115090.0,0.00044868]
[1761571921648,0.20995932,115090.0,115080.0,0.08502273]
[1761571921871,1.07301502,115090.0,115080.0,0.19838273]
[1761571923078,1.08175709,115090.0,115080.0,0.08502273]
[1761571923282,1.08375709,115090.0,115080.0,0.24038273]
[1761571923597,1.08375709,115090.0,115080.0,0.20230273]
[1761571924664,0.39159734,115090.0,115080.0,0.20230273]
[1761571924873,0.40042339,115090.0,115080.0,1e-08]
[1761571925079,0.54997442,115080.0,115070.0,0.20848]
[1761571925285,1.41303012,115080.0,115070.0,0.59116]
[1761571925718,0.72961244,115080.0,115070.0,0.59116]
[1761571925935,1.41303012,115080.0,115070.0,0.59116]
[1761571926553,1.41503012,115080.0,115070.0,0.60016]
[1761571926762,0.73161244,115080.0,115070.0,0.60016]
[1761571926970,1.41303012,115080.0,115070.0,0.59116]
[1761571927190,0.73061244,115080.0,115070.0,0.59116]
[1761571927398,1.41603012,115080.0,115070.0,0.59416]
[1761571927604,0.64279343,115080.0,115070.0,0.59416]
[1761571928226,1.32621111,115080.0,115070.0,0.003]
[1761571928433,1.32621111,115080.0,115070.0,0.4408]
[1761571928648,1.32621111,115080.0,115070.0,0.50832]
[1761571928856,1.41603012,115080.0,115070.0,0.50832]
[1761571929071,1.42603012,115080.0,115070.0,0.50832]
[1761571930875,0.54998952,115070.0,115060.0,0.0004]
[1761571931116,1.32322621,115070.0,115060.0,0.056]
[1761571931431,1.32322621,115070.0,115060.0,0.05703428]
[1761571931552,1.41304522,115070.0,115060.0,0.05703428]
[1761571932128,1.41404522,115070.0,115060.0,0.15835428]
[1761571932459,0.73262754,115070.0,115060.0,0.21543428]
[1761571933633,0.69644526,115070.0,115060.0,0.21543428]
[1761571933809,0.73262754,115070.0,115060.0,0.21543428]
[1761571935157,0.73262754,115070.0,115060.0,0.59771428]
[1761571936941,1.41604522,115070.0,115060.0,0.00643428]
[1761571937163,1.41604522,115070.0,115060.0,0.43788001]
[1761571937397,0.55000463,115060.0,115050.0,0.0004]
[1761571937600,1.42306033,115060.0,115050.0,0.22976]
[1761571937835,0.55001974,115050.0,115040.0,0.0004]
[1761571938079,1.32325643,115050.0,115040.0,0.00088547]
[1761571938888,1.32325643,115050.0,115040.0,0.10712547]
[1761571939117,0.64083875,115050.0,115040.0,0.10712547]
[1761571939575,0.30083875,115050.0,115040.0,0.10712547]
[1761571940417,0.30783875,115050.0,115040.0,0.11012547]
[1761571940628,0.30783875,115050.0,115040.0,0.10712547]
[1761571941049,0.30983875,115050.0,115040.0,0.11012547]
[1761571941252,0.32860789,115050.0,115040.0,0.11012547]
[1761571941387,0.41776858,115050.0,115040.0,0.11012547]
[1761571941833,0.41776858,115050.0,115040.0,0.00388547]
[1761571942008,1.12464769,115050.0,115040.0,0.00388547]
[1761571942227,1.49584783,115050.0,115040.0,0.09716547]
[1761571942425,1.46464769,115050.0,115040.0,0.09716547]
[1761571942625,1.46464769,115050.0,115040.0,0.00388547]
[1761571942828,1.46464769,115050.0,115040.0,0.05628547]
[1761571943030,1.41772483,115050.0,115040.0,0.05628547]
[1761571943422,1.48028865,115050.0,115040.0,0.05669935]
[1761571943647,0.39217171,115050.0,115040.0,0.05669935]
[1761571943988,0.25819316,115050.0,115040.0,0.05669935]
[1761571944188,0.053165,115050.0,115040.0,0.23055192]
[1761571944602,0.02976914,115050.0,115040.0,0.23055192]
[1761571944822,0.06595142,115050.0,115040.0,0.23055192]
[1761571945029,0.06495142,115050.0,115040.0,0.70327192]
[1761571945291,0.02876914,115050.0,115040.0,0.75887192]
[1761571945743,0.01,115050.0,115040.0,1.53210861]
[1761571946232,0.05495142,115060.0,115050.0,0.17383746]
[1761571946456,0.01876914,115070.0,115060.0,0.17382235]
[1761571946682,0.01947169,115080.0,115070.0,0.17380724]
[1761571946902,0.01947169,115080.0,115070.0,0.22940724]
[1761571946903,0.00077861,115080.0,115070.0,0.22940724]
[1761571947915,0.17457075,115080.0,115070.0,0.22940724]
[1761571948115,0.00077861,115080.0,115070.0,0.22940724]
[1761571948534,0.00077861,115080.0,115070.0,0.23040724]
[1761571949403,0.00477861,115080.0,115070.0,0.24040724]
[1761571951545,0.17857075,115080.0,115070.0,0.24040724]
[1761571951752,0.33980708,115080.0,115070.0,0.44888]
[1761571952058,0.35845122,115080.0,115070.0,0.60244]
[1761571952652,1.0418689,115080.0,115070.0,0.44888]
[1761571952860,1.0378689,115080.0,115070.0,0.59244]
[1761571952968,0.35745122,115080.0,115070.0,0.60044]
[1761571953179,0.38084708,115080.0,115070.0,0.59944]
[1761571953399,0.37784708,115080.0,115070.0,0.59144]
[1761571953616,0.37784708,115080.0,115070.0,0.59544]
[1761571953826,0.38684708,115080.0,115070.0,0.59544]
[1761571954035,0.35161204,115080.0,115070.0,0.59544]
[1761571954458,0.35161204,115080.0,115070.0,0.59444]
[1761571954672,0.35261204,115080.0,115070.0,0.59444]
[1761571955176,1.40722042,115080.0,115070.0,0.003]
[1761571955394,1.40722042,115080.0,115070.0,0.44088]
[1761571955395,2.84072032,115080.0,115070.0,0.44088]
[1761571955602,2.84072032,115080.0,115070.0,0.59448]
[1761571956667,0.55000463,115060.0,115050.0,0.29908692]
[1761571956887,0.55000463,115060.0,115050.0,0.59172692]
[1761571956888,1.38854133,115060.0,115050.0,0.59172692]
[1761571957092,1.68501034,115060.0,115050.0,0.59172692]
[1761571957297,1.47836034,115060.0,115050.0,0.59172692]
[1761571957524,1.50945364,115060.0,115050.0,0.59172692]
[1761571957938,1.17045364,115060.0,115050.0,0.59172692]
[1761571958140,0.46370122,115060.0,115050.0,0.59172692]
[1761571958340,0.46270122,115060.0,115050.0,0.59172692]
[1761571958807,1.1461189,115060.0,115050.0,0.59172692]
[1761571959069,1.1501189,115060.0,115050.0,0.59672692]
[1761571959226,1.1461189,115060.0,115050.0,0.59172692]
[1761571959643,1.1511189,115060.0,115050.0,0.59572692]
[1761571959843,1.1521189,115060.0,115050.0,0.59572692]
[1761571960314,0.44538009,115060.0,115050.0,0.00420692]
[1761571960518,1.51545364,115060.0,115050.0,0.59576692]
[1761571960845,1.46879777,115060.0,115050.0,0.59576692]
[1761571961047,1.46879777,115060.0,115050.0,0.54012692]
[1761571961264,0.78538009,115060.0,115050.0,0.59572692]
[1761571961439,0.80870242,115060.0,115050.0,0.59572692]
[1761571963383,0.77760912,115060.0,115050.0,0.59572692]
[1761571963810,1.4610268,115060.0,115050.0,0.59580692]
[1761571964020,1.4921201,115060.0,115050.0,0.59580692]
[1761571964433,1.4610268,115060.0,115050.0,0.59580692]
[1761571965056,1.4610268,115060.0,115050.0,0.00420692]
[1761571965296,1.4610268,115060.0,115050.0,0.21276692]
[1761571965527,1.4610268,115060.0,115050.0,0.52092692]
[1761571966146,1.4610268,115060.0,115050.0,0.59576692]
[1761571966357,1.4783968,115060.0,115050.0,0.59576692]
[1761571966574,1.4610268,115060.0,115050.0,0.59576692]
[1761571967181,1.4610268,115060.0,115050.0,0.00420692]
[1761571967384,1.4610268,115060.0,115050.0,0.38720692]
[1761571967561,1.7402201,115060.0,115050.0,0.38720692]
[1761571968036,3.00101677,115060.0,115050.0,0.38720692]
[1761571968244,2.81907952,115060.0,115040.0,0.20944547]
[1761571968372,1.34498611,115050.0,115040.0,0.20944547]
[1761571968569,1.34498611,115050.0,115040.0,0.43884547]
[1761571968570,1.43171958,115050.0,115040.0,0.43884547]
[1761571969569,1.43171958,115050.0,115040.0,0.59244547]
[1761571969774,1.43171958,115050.0,115040.0,0.36304547]
[1761571969981,1.43171958,115050.0,115040.0,0.00088547]
[1761571970198,1.43171958,115050.0,115040.0,0.59244547]
[1761571970454,1.43771958,115050.0,115040.0,0.50856547]
[1761571971544,0.7543019,115050.0,115040.0,0.50856547]
[1761571972088,1.41907544,115050.0,115040.0,0.50856547]
[1761571972320,1.43772902,115050.0,115040.0,0.44084547]
[1761571972570,1.43772902,115050.0,115040.0,0.59440547]
[1761571973238,0.75431134,115050.0,115040.0,0.59440547]
[1761571973673,1.43772902,115050.0,115040.0,0.59440547]
[1761571974076,1.43772902,115050.0,115040.0,0.59461242]
[1761571975838,1.30705576,115050.0,115040.0,0.59461242]
[1761571977769,0.75431134,115050.0,115040.0,0.59461242]
[1761571978017,0.69947548,115050.0,115040.0,0.59461242]
[1761571978186,0.75431781,115050.0,115040.0,0.59461242]
[1761571978389,1.30706223,115050.0,115040.0,0.59461242]
[1761571978997,0.75431781,115050.0,115040.0,0.59461242]
[1761571979197,1.30706223,115050.0,115040.0,0.59461242]
[1761571980024,1.30706223,115050.0,115040.0,0.00309242]
[1761571980410,1.30706223,115050.0,115040.0,0.59461242]
[1761571981222,1.3303797,115050.0,115040.0,0.59461242]
[1761571982713,1.3303797,115050.0,115040.0,0.00309242]
[1761571982914,1.3303797,115050.0,115040.0,0.47209242]
[1761571984416,0.56872747,115040.0,115010.0,0.0004]
[1761571984654,1.19262851,115020.0,115010.0,0.00048432]
[1761571984866,1.21128856,115020.0,115010.0,0.29508432]
[1761571985283,0.65854414,115020.0,115010.0,0.29508432]
[1761571986189,0.66354414,115020.0,115010.0,0.29508432]
[1761571986391,0.75273376,115020.0,115010.0,0.29508432]
[1761571987049,1.30547818,115020.0,115010.0,0.29508432]
[1761571988020,0.75273376,115020.0,115010.0,0.29508432]
[1761571988233,0.41273376,115020.0,115010.0,0.29508432]
[1761571988497,0.30488409,115020.0,115010.0,0.29508432]
[1761571988693,0.30588409,115020.0,115010.0,0.29508432]
[1761571989527,0.21606508,115020.0,115010.0,0.29508432]
[1761571989953,0.30588409,115020.0,115010.0,0.22988432]
[1761571990159,0.3957031,115020.0,115010.0,0.38344432]
[1761571990669,0.3957031,115020.0,115010.0,0.00110535]
[1761571990869,0.96716197,115020.0,115010.0,0.59270535]
[1761571991208,0.41441755,115020.0,115010.0,0.59270535]
[1761571991412,0.96716197,115020.0,115010.0,0.38354535]
[1761571991758,0.96716197,115020.0,115010.0,0.59270535]
[1761571992305,0.96716197,115020.0,115010.0,0.00110535]
[1761571992515,1.30716197,115020.0,115010.0,0.00110535]
[1761571992762,1.330553,115020.0,115010.0,0.43914535]
[1761571992970,1.3616463,115020.0,115010.0,0.52010535]
[1761571993294,1.330553,115020.0,115010.0,0.52010535]
[1761571994054,0.77780858,115020.0,115010.0,0.52010535]
[1761571994501,1.30716197,115020.0,115010.0,0.52010535]
[1761571995591,0.75441755,115020.0,115010.0,0.52010535]
[1761571995796,1.25441755,115020.0,115010.0,0.52010535]
[1761571996037,1.80716197,115020.0,115010.0,0.52010535]
[1761571996248,2.30716197,115020.0,115010.0,0.43914535]
[1761571996477,2.330553,115020.0,115010.0,0.43914535]
[1761571996683,2.330553,115020.0,115010.0,0.59270535]
[1761571997095,2.3616463,115020.0,115010.0,0.59270535]
[1761571997293,0.5500802,115010.0,115000.0,0.0004]
[1761571997498,0.5500802,115010.0,115000.0,0.22984]
[1761571997499,1.32456569,115010.0,115000.0,0.22984]
[1761571997706,1.30117709,115010.0,115000.0,0.22984]
[1761571997931,0.74843267,115010.0,115000.0,0.22984]
[1761571998138,1.30117709,115010.0,115000.0,0.22984]
[1761571998552,1.30117709,115010.0,115000.0,0.38348]
[1761571998756,1.30617709,115010.0,115000.0,0.38348]
[1761571999167,1.30117709,115010.0,115000.0,0.38348]
[1761572000349,1.30617709,115010.0,115000.0,0.38348]
[1761572001108,0.17391304,115000.0,114990.0,0.0004]
[1761572001288,1.28247776,115000.0,114990.0,0.05608869]
[1761572001486,1.30119221,115000.0,114990.0,0.05608869]
[1761572002252,1.30119221,115000.0,114990.0,0.17348869]
[1761572002652,1.30219221,115000.0,114990.0,0.17348869]
[1761572003094,1.30819221,115000.0,114990.0,0.17348869]
[1761572003296,1.86093663,115000.0,114990.0,0.05650283]
[1761572003450,1.87093663,115000.0,114990.0,0.11870283]
[1761572003663,0.2894465,115000.0,114990.0,0.11870283]
[1761572003844,0.27073205,115000.0,114990.0,0.11870283]
[1761572004050,0.77073205,115000.0,114990.0,0.11870283]
[1761572004249,1.27073205,115000.0,114990.0,0.11870283]
[1761572004691,1.30691433,115000.0,114990.0,0.11870283]
[1761572004893,1.39673334,115000.0,114990.0,0.11870283]
[1761572005100,1.39673334,115000.0,114990.0,0.50122283]
[1761572005101,1.39073334,115000.0,114990.0,0.50122283]
[1761572005300,1.38973334,115000.0,114990.0,0.50122283]
[1761572005535,1.39573334,115000.0,114990.0,0.50122283]
[1761572005673,1.39673334,115000.0,114990.0,0.50122283]
[1761572005865,1.39073334,115000.0,114990.0,0.50122283]
[1761572006139,1.26473205,115000.0,114990.0,0.50088798]
[1761572006420,1.30591433,115000.0,114990.0,0.50088798]
[1761572006635,1.29991433,115000.0,114990.0,0.50088798]
[1761572007035,1.30491433,115000.0,114990.0,0.50088798]
[1761572008508,1.30491433,115000.0,114990.0,0.67481614]
[1761572008927,1.04118228,115000.0,114990.0,0.67481614]
[1761572009129,1.21509532,115000.0,114990.0,0.50088798]
[1761572009357,1.25717286,115000.0,114990.0,0.50088798]
[1761572009781,1.25717286,115000.0,114990.0,0.05564]
[1761572010826,1.25717286,115000.0,114990.0,0.20936]
[1761572011035,1.21509532,115000.0,114990.0,0.20936]
[1761572011657,1.85765875,115000.0,114990.0,0.20936]
[1761572012157,1.30491433,115000.0,114990.0,0.20936]
[1761572013374,1.85765875,115000.0,114990.0,0.20936]
[1761572014193,1.30491433,115000.0,114990.0,0.20936]
[1761572014388,1.39473334,115000.0,114990.0,0.20936]
[1761572015148,1.39473334,115000.0,114990.0,0.59188]